fUST/lending_fUST_20240723
["ID","MTS","AMOUNT","RATE_DAILY","PERIOD"]
[332923627,1721680264697,-500.0,0.00015616,2]
[332923628,1721680264707,-500.0,0.00015616,2]
[332923629,1721680264717,-449.87,0.00015616,2]
[332923630,1721680264727,-417.89309372,0.00015616,2]
[332923631,1721680264737,-500.0,0.00015616,2]
[332923632,1721680264747,-500.0,0.00015616,2]
[332923633,1721680264756,-500.0,0.00015616,2]
[332923634,1721680264766,-500.0,0.00015616,2]
[332923635,1721680264777,-500.0,0.00015616,2]
[332923636,1721680264790,-618.69,0.00015616,2]
[332923637,1721680264800,-500.0,0.00015616,2]
[332923638,1721680264810,-500.0,0.00015616,2]
[332923639,1721680264821,-500.0,0.00015616,2]
[332923640,1721680264830,-500.0,0.00015616,2]
[332923641,1721680264839,-500.0,0.00015616,2]
[332923642,1721680264849,-500.0,0.00015616,2]
[332923643,1721680264858,-500.0,0.00015616,2]
[332923644,1721680264868,-500.0,0.00015616,2]
[332923645,1721680264881,-500.0,0.00015616,2]
[332923646,1721680264891,-500.0,0.00015616,2]
[332923647,1721680264901,-500.0,0.00015616,2]
[332923648,1721680264912,-500.0,0.00015616,2]
[332923649,1721680264923,-609.07,0.00015616,2]
[332923650,1721680264933,-500.0,0.00015616,2]
[332923651,1721680264946,-522.82,0.00015616,2]
[332923652,1721680264958,-500.0,0.00015616,2]
[332923653,1721680264968,-627.63,0.00015616,2]
[332923654,1721680264978,-500.0,0.00015616,2]
[332923655,1721680264989,-540.01,0.00015616,2]
[332923656,1721680265000,-581.59517477,0.00015616,2]
[332923657,1721680265011,-500.0,0.00015616,2]
[332923658,1721680265021,-500.0,0.00015616,2]
[332923659,1721680265031,-1110.47,0.00015616,2]
[332923660,1721680265042,-500.0,0.00015616,2]
[332923661,1721680265054,-568.51,0.00015616,2]
[332923662,1721680265063,-500.0,0.00015616,2]
[332923663,1721680265073,-500.0,0.00015616,2]
[332923664,1721680265083,-500.0,0.00015616,2]
[332923665,1721680265092,-500.0,0.00015616,2]
[332923666,1721680265102,-500.0,0.00015616,2]
[332923667,1721680265112,-633.99,0.00015616,2]
[332923668,1721680265122,-500.0,0.00015616,2]
[332923669,1721680265132,-500.0,0.00015616,2]
[332923670,1721680265142,-211.0,0.00015616,2]
[332923671,1721680265152,-500.0,0.00015616,2]
[332923672,1721680265163,-500.0,0.00015616,2]
[332923673,1721680265172,-500.0,0.00015616,2]
[332923674,1721680265182,-500.0,0.00015616,2]
[332923675,1721680265194,-677.52,0.00015616,2]
[332923676,1721680265204,-509.15,0.00015616,2]
[332923677,1721680265213,-500.0,0.00015616,2]
[332923678,1721680265224,-500.0,0.00015616,2]
[332923679,1721680265233,-562.75,0.00015616,2]
[332923680,1721680265243,-500.0,0.00015616,2]
[332923681,1721680265253,-500.0,0.00015616,2]
[332923682,1721680265262,-500.0,0.00015616,2]
[332923683,1721680265272,-454.04,0.00015616,2]
[332923684,1721680265282,-500.0,0.00015616,2]
[332923685,1721680265292,-500.0,0.00015616,2]
[332923686,1721680265301,-500.0,0.00015616,2]
[332923687,1721680265310,-615.5,0.00015616,2]
[332923688,1721680265320,-500.0,0.00015616,2]
[332923689,1721680265329,-607.77,0.00015616,2]
[332923690,1721680265338,-500.0,0.00015616,2]
[332923691,1721680265348,-500.0,0.00015616,2]
[332923692,1721680265357,-500.0,0.00015616,2]
[332923693,1721680265366,-500.0,0.00015616,2]
[332923694,1721680265376,-395.65,0.00015616,2]
[332923695,1721680265385,-578.61257649,0.00015616,2]
[332923696,1721680265395,-500.0,0.00015616,2]
[332923697,1721680265406,-500.0,0.00015616,2]
[332923698,1721680265417,-500.0,0.00015616,2]
[332923699,1721680265426,-500.0,0.00015616,2]
[332923700,1721680265439,-500.0,0.00015616,2]
[332923701,1721680265447,-809.09,0.00015616,2]
[332923702,1721680265457,-500.0,0.00015616,2]
[332923703,1721680265466,-500.0,0.00015616,2]
[332923704,1721680265476,-500.0,0.00015616,2]
[332923705,1721680265485,-500.0,0.00015616,2]
[332923706,1721680265495,-410.34,0.00015616,2]
[332923707,1721680265505,-500.0,0.00015616,2]
[332923708,1721680265514,-500.0,0.00015616,2]
[332923709,1721680265523,-500.0,0.00015616,2]
[332923710,1721680265533,-500.0,0.00015616,2]
[332923711,1721680265541,-500.0,0.00015616,2]
[332923712,1721680265550,-500.0,0.00015616,2]
[332923713,1721680265560,-500.0,0.00015616,2]
[332923714,1721680265569,-500.0,0.00015616,2]
[332923715,1721680265579,-500.0,0.00015616,2]
[332923716,1721680265588,-500.0,0.00015616,2]
[332923717,1721680265597,-500.0,0.00015616,2]
[332923718,1721680265606,-195.90695,0.00015672,2]
[332923719,1721680265615,-167.387979,0.00015672,2]
[332923720,1721680265625,-167.387979,0.00015672,2]
[332923721,1721680265634,-195.906949,0.00015672,2]
[332923722,1721680265643,-167.387979,0.00015672,2]
[332923723,1721680265652,-195.90695,0.00015672,2]
[332923724,1721680265662,-67176.6485784,0.00015707,2]
[332923725,1721680265670,-151.0,0.00015707,2]
[332923726,1721680265680,-319799.05613138,0.00015707,2]
[332923727,1721680265691,-208.963372,0.00015707,2]
[332923728,1721680265700,-151.0,0.00015707,2]
[332923729,1721680265709,-579.61633,0.00015707,2]
[332923730,1721680265718,-579.61633,0.00015707,2]
[332923731,1721680265728,-156.642942,0.00015707,2]
[332923732,1721680265738,-156.642942,0.00015707,2]
[332923733,1721680265747,-151.0,0.00015707,2]
[332923734,1721680265756,-151.0,0.00015707,2]
[332923735,1721680265765,-287.810939,0.00015707,2]
[332923736,1721680265774,-151.0,0.00015707,2]
[332923737,1721680265784,-151.0,0.00015707,2]
[332923738,1721680265793,-151.0,0.00015707,2]
[332923739,1721680265802,-151.0,0.00015707,2]
[332923740,1721680265811,-224.50165,0.00015707,2]
[332923741,1721680265820,-224.50165,0.00015707,2]
[332923742,1721680265830,-151.0,0.00015707,2]
[332923743,1721680265841,-151.0,0.00015707,2]
[332923744,1721680265851,-151.0,0.00015707,2]
[332923745,1721680265863,-151.0,0.00015707,2]
[332923746,1721680265878,-18498.2120516,0.00015708,2]
[332923747,1721680265888,-21287.15978563,0.00015708,2]
[332923748,1721680265898,-1990.46436479,0.00015708,2]
[332923749,1721680265907,-2229.76315715,0.00015708,2]
[332923750,1721680265919,-5923.53523309,0.00015708,2]
[332923751,1721680265928,-4076.21094792,0.00015708,2]
[332923752,1721680265944,-6997.94438168,0.00015708,2]
[332923753,1721680265955,-10604.54681746,0.00015708,2]
[332923754,1721680265967,-1500.0,0.00015708,2]
[332923755,1721680265976,-8399.99138129,0.00015708,2]
[332923756,1721680265985,-8099.82307032,0.00015708,2]
[332923757,1721680265994,-1638.86324211,0.00015708,2]
[332923758,1721680266082,-4001.92634564,0.00015708,2]
[332923759,1721680266093,-156.820474,0.00015708,2]
[332923760,1721680266102,-156.820474,0.00015708,2]
[332923761,1721680266112,-196.48811,0.00015708,2]
[332923762,1721680266121,-196.48811,0.00015708,2]
[332923763,1721680266130,-151.0,0.00015708,2]
[332923764,1721680266141,-207.851365,0.00015708,2]
[332923765,1721680266151,-207.851365,0.00015708,2]
[332923766,1721680266162,-151.0,0.00015708,2]
[332923767,1721680266173,-1762.40924644,0.00015708,2]
[332923768,1721680266183,-151.0,0.00015708,2]
[332923769,1721680266196,-531.29167136,0.00015708,2]
[332923770,1721680266206,-726.7153245,0.00015708,2]
[332923771,1721680266215,-4249.03828828,0.00015708,2]
[332923772,1721680266225,-600.19386734,0.00015708,2]
[332923773,1721680266236,-156.43671221,0.00015708,2]
[332923774,1721680266245,-492.18569369,0.00015708,2]
[332923775,1721680266254,-180.28036357,0.00015708,2]
[332923776,1721680266265,-180.28036357,0.0001571,2]
[332923777,1721680266276,-154.71377951,0.0001571,2]
[332923778,1721680266286,-154.71377951,0.0001571,2]
[332923779,1721680266296,-154.71377951,0.0001571,2]
[332923780,1721680266307,-154.71377951,0.0001571,2]
[332923781,1721680266317,-542.48310742,0.0001571,2]
[332923782,1721680266326,-53064.15054415,0.00015711,2]
[332923783,1721680266336,-848.46107157,0.00015712,2]
[332923784,1721680266346,-526.84583493,0.00015712,2]
[332923785,1721680266356,-154.71377951,0.00015712,2]
[332923786,1721680266366,-154.71377951,0.00015712,2]
[332923787,1721680266376,-848.46107157,0.00015712,2]
[332923788,1721680266388,-256.84490247,0.00015712,2]
[332923789,1721680266398,-154.71377951,0.00015744,2]
[332923790,1721680266408,-1023.91155908,0.00015744,2]
[332923791,1721680266418,-154.71377951,0.00015744,2]
[332923792,1721680266428,-154.71377951,0.00015744,2]
[332923793,1721680266442,-159.99048305,0.00015744,2]
[332923794,1721680266452,-154.71377951,0.00015744,2]
[332923795,1721680266464,-154.71377951,0.00015744,2]
[332923796,1721680266475,-159.99048305,0.00015744,2]
[332923797,1721680266485,-154.71377951,0.00015746,2]
[332923798,1721680266495,-533.33376978,0.00015746,2]
[332923799,1721680266505,-413.45473308,0.00015746,2]
[332923800,1721680266515,-341.66678597,0.00015746,2]
[332923801,1721680266525,-154.71377951,0.00015751,2]
[332923802,1721680266535,-154.71377951,0.00015751,2]
[332923803,1721680266544,-346.24214689,0.00015751,2]
[332923804,1721680266554,-154.71377951,0.00015751,2]
[332923805,1721680266563,-154.71377951,0.00015751,2]
[332923806,1721680266573,-154.71377951,0.00015751,2]
[332923807,1721680266584,-3359.62228768,0.0001582,2]
[332923808,1721680266593,-287.45478261,0.00015851,2]
[332923809,1721680266602,-154.74867499,0.00015851,2]
[332923810,1721680266612,-154.71377951,0.00015851,2]
[332923811,1721680266621,-459.13593927,0.00015851,2]
[332923812,1721680266631,-1748.25,0.0001589,2]
[332923813,1721680266640,-500.0,0.0001589,2]
[332923814,1721680266649,-500.0,0.0001589,2]
[332923815,1721680266658,-1403.19,0.0001589,2]
[332923816,1721680266668,-500.0,0.0001589,2]
[332923817,1721680266678,-500.0,0.0001589,2]
[332923818,1721680266687,-500.0,0.0001589,2]
[332923819,1721680266697,-503.99,0.0001589,2]
[332923820,1721680266706,-500.0,0.0001589,2]
[332923821,1721680266716,-1286.77,0.0001589,2]
[332923822,1721680266725,-500.0,0.0001589,2]
[332923823,1721680266734,-500.0,0.0001589,2]
[332923824,1721680266744,-238.4,0.0001589,2]
[332923825,1721680266753,-504.21,0.0001589,2]
[332923826,1721680266763,-471.42,0.0001589,2]
[332923827,1721680266773,-500.0,0.0001589,2]
[332923828,1721680266783,-2398.17,0.0001589,2]
[332923829,1721680266794,-500.0,0.0001589,2]
[332923830,1721680266805,-500.0,0.0001589,2]
[332923831,1721680266815,-500.0,0.0001589,2]
[332923832,1721680266825,-1715.81,0.0001589,2]
[332923833,1721680266834,-519.73,0.0001589,2]
[332923834,1721680266845,-500.0,0.0001589,2]
[332923835,1721680266857,-500.0,0.0001589,2]
[332923836,1721680266868,-2945.6,0.0001589,2]
[332923837,1721680266882,-500.0,0.0001589,2]
[332923838,1721680266892,-500.0,0.0001589,2]
[332923839,1721680266903,-548.84,0.0001589,2]
[332923840,1721680266913,-1056.19,0.0001589,2]
[332923841,1721680266922,-500.0,0.0001589,2]
[332923842,1721680266931,-500.0,0.0001589,2]
[332923843,1721680266943,-1214.04,0.0001589,2]
[332923844,1721680266954,-900.64,0.0001589,2]
[332923845,1721680266964,-500.0,0.0001589,2]
[332923846,1721680266975,-600.28,0.0001589,2]
[332923847,1721680266985,-1219.66,0.0001589,2]
[332923848,1721680266996,-500.0,0.0001589,2]
[332923849,1721680267006,-1201.16,0.0001589,2]
[332923850,1721680267016,-500.0,0.0001589,2]
[332923851,1721680267026,-500.0,0.0001589,2]
[332923852,1721680267035,-500.0,0.0001589,2]
[332923853,1721680267046,-646.82,0.0001589,2]
[332923854,1721680267055,-500.0,0.0001589,2]
[332923855,1721680267064,-500.0,0.0001589,2]
[332923856,1721680267074,-500.0,0.0001589,2]
[332923857,1721680267084,-500.0,0.0001589,2]
[332923858,1721680267095,-500.0,0.0001589,2]
[332923859,1721680267105,-500.0,0.0001589,2]
[332923860,1721680267115,-500.0,0.0001589,2]
[332923861,1721680267124,-888.44,0.0001589,2]
[332923862,1721680267134,-500.0,0.0001589,2]
[332923863,1721680267143,-500.0,0.0001589,2]
[332923864,1721680267152,-584.77,0.0001589,2]
[332923865,1721680267161,-500.0,0.0001589,2]
[332923866,1721680267170,-350.32,0.0001589,2]
[332923867,1721680267180,-500.0,0.0001589,2]
[332923868,1721680267189,-500.0,0.0001589,2]
[332923869,1721680267200,-570.18,0.0001589,2]
[332923870,1721680267210,-500.0,0.0001589,2]
[332923871,1721680267219,-500.0,0.0001589,2]
[332923872,1721680267228,-500.0,0.0001589,2]
[332923873,1721680267238,-33.93148569,0.0001589,2]
[332923874,1721680268048,-466.06851431,0.0001589,2]
[332923875,1721680268057,-500.0,0.0001589,2]
[332923876,1721680268066,-500.0,0.0001589,2]
[332923877,1721680268075,-500.0,0.0001589,2]
[332923878,1721680268084,-500.0,0.0001589,2]
[332923879,1721680268094,-500.0,0.0001589,2]
[332923880,1721680268103,-203.17,0.0001589,2]
[332923881,1721680268113,-500.0,0.0001589,2]
[332923882,1721680268123,-500.0,0.0001589,2]
[332923883,1721680268132,-500.0,0.0001589,2]
[332923884,1721680268141,-500.0,0.0001589,2]
[332923885,1721680268151,-181.48235555,0.0001589,2]
[332923886,1721680268160,-500.0,0.0001589,2]
[332923887,1721680268170,-500.0,0.0001589,2]
[332923888,1721680268179,-500.0,0.0001589,2]
[332923889,1721680268190,-609.07,0.0001589,2]
[332923890,1721680268200,-500.0,0.0001589,2]
[332923891,1721680268209,-522.82,0.0001589,2]
[332923892,1721680268219,-183.24,0.0001589,2]
[332923893,1721680268228,-627.63,0.0001589,2]
[332923894,1721680268239,-500.0,0.0001589,2]
[332923895,1721680268250,-540.01,0.0001589,2]
[332923896,1721680268259,-500.0,0.0001589,2]
[332923897,1721680268270,-500.0,0.0001589,2]
[332923898,1721680268280,-500.0,0.0001589,2]
[332923899,1721680268289,-568.51,0.0001589,2]
[332923900,1721680268299,-500.0,0.0001589,2]
[332923901,1721680268310,-500.0,0.0001589,2]
[332923902,1721680268319,-500.0,0.0001589,2]
[332923903,1721680268329,-500.0,0.0001589,2]
[332923904,1721680268338,-633.99,0.0001589,2]
[332923905,1721680268348,-500.0,0.0001589,2]
[332923906,1721680268357,-624.01476377,0.0001589,2]
[332923907,1721680268367,-500.0,0.0001589,2]
[332923908,1721680268377,-500.0,0.0001589,2]
[332923909,1721680268386,-500.0,0.0001589,2]
[332923910,1721680268395,-677.52,0.0001589,2]
[332923911,1721680268404,-509.15,0.0001589,2]
[332923912,1721680268413,-500.0,0.0001589,2]
[332923913,1721680268423,-500.0,0.0001589,2]
[332923914,1721680268431,-562.75,0.0001589,2]
[332923915,1721680268440,-235.35,0.0001589,2]
[332923916,1721680268450,-500.0,0.0001589,2]
[332923917,1721680268459,-500.0,0.0001589,2]
[332923918,1721680268468,-500.0,0.0001589,2]
[332923919,1721680268477,-211.11,0.0001589,2]
[332923920,1721680268486,-638.4,0.0001589,2]
[332923921,1721680268495,-151.0,0.0001589,2]
[332923922,1721680268505,-244.59,0.0001589,2]
[332923923,1721680268514,-607.77,0.0001589,2]
[332923924,1721680268523,-500.0,0.0001589,2]
[332923925,1721680268532,-204.23,0.0001589,2]
[332923926,1721680268541,-500.0,0.0001589,2]
[332923927,1721680268550,-500.0,0.0001589,2]
[332923928,1721680268559,-500.0,0.0001589,2]
[332923929,1721680268568,-194.64137092,0.0001589,2]
[332923930,1721680268578,-500.0,0.0001589,2]
[332923931,1721680268587,-500.0,0.0001589,2]
[332923932,1721680268596,-500.0,0.0001589,2]
[332923933,1721680268606,-809.09,0.0001589,2]
[332923934,1721680268615,-194.638434,0.0001589,2]
[332923935,1721680268624,-194.638434,0.0001589,2]
[332923936,1721680268634,-500.0,0.0001589,2]
[332923937,1721680268643,-439.7,0.0001589,2]
[332923938,1721680268729,-500.0,0.0001589,2]
[332923939,1721680268738,-505.72,0.0001589,2]
[332923940,1721680268747,-500.0,0.0001589,2]
[332923941,1721680268756,-359.87,0.0001589,2]
[332923942,1721680268765,-500.0,0.0001589,2]
[332923943,1721680268774,-500.0,0.0001589,2]
[332923944,1721680268784,-500.0,0.0001589,2]
[332923945,1721680268793,-151.079315,0.0001589,2]
[332923946,1721680268802,-151.079315,0.0001589,2]
[332923947,1721680268811,-500.0,0.0001589,2]
[332923948,1721680268819,-500.0,0.0001589,2]
[332923949,1721680268828,-500.0,0.0001589,2]
[332923950,1721680268837,-177.15,0.0001589,2]
[332923951,1721680268846,-398.51,0.0001589,2]
[332923952,1721680268855,-200.0,0.00015942,2]
[332923953,1721680268865,-154.71377951,0.00015952,2]
[332923954,1721680268874,-319.37459379,0.00015952,2]
[332923955,1721680268886,-154.71377951,0.00015952,2]
[332923956,1721680268895,-208.54118651,0.00015952,2]
[332923957,1721680268904,-154.71377951,0.00015954,2]
[332923958,1721680268913,-154.71377951,0.00015954,2]
[332923959,1721680268923,-156.64447961,0.00015954,2]
[332923960,1721680268932,-154.71377951,0.00016038,2]
[332923961,1721680268943,-154.71377951,0.00016038,2]
[332923962,1721680268954,-154.71377951,0.00016038,2]
[332923963,1721680268963,-188.02900327,0.00016038,2]
[332923964,1721680268975,-304.3397691,0.00016038,2]
[332923965,1721680268985,-154.71377951,0.00016038,2]
[332923966,1721680268994,-18490.48525082,0.00016061,2]
[332923967,1721680269197,-151.0,0.00015707,2]
[332923968,1721680269207,-151.0,0.00015707,2]
[332923969,1721680269216,-154.71377951,0.00015746,2]
[332923970,1721680269226,-11509.51474918,0.00016061,2]
[332923971,1721680269235,-789.84351672,0.00016108,2]
[332923972,1721680269244,-397.25645957,0.0001611,2]
[332923973,1721680269254,-154.71377951,0.00016159,2]
[332923974,1721680269264,-1748.25,0.00016164,2]
[332923975,1721680269284,-500.0,0.00016164,2]
[332923976,1721680269303,-556.63,0.00016164,2]
[332923977,1721680269323,-1403.19,0.00016164,2]
[332923978,1721680269345,-500.0,0.00016164,2]
[332923979,1721680269368,-500.0,0.00016164,2]
[332923980,1721680269387,-500.0,0.00016164,2]
[332923981,1721680269408,-503.99,0.00016164,2]
[332923982,1721680269426,-500.0,0.00016164,2]
[332923983,1721680269445,-1286.77,0.00016164,2]
[332923984,1721680269467,-500.0,0.00016164,2]
[332923985,1721680269482,-500.0,0.00016164,2]
[332923986,1721680269500,-504.21,0.00016164,2]
[332923987,1721680269519,-500.0,0.00016164,2]
[332923988,1721680269536,-2398.17,0.00016164,2]
[332923989,1721680269549,-500.0,0.00016164,2]
[332923990,1721680269564,-500.0,0.00016164,2]
[332923991,1721680269579,-500.0,0.00016164,2]
[332923992,1721680269596,-1715.81,0.00016164,2]
[332923993,1721680269613,-519.73,0.00016164,2]
[332923994,1721680269631,-500.0,0.00016164,2]
[332923995,1721680269647,-500.0,0.00016164,2]
[332923996,1721680269664,-2945.6,0.00016164,2]
[332923997,1721680269680,-500.0,0.00016164,2]
[332923998,1721680269696,-500.0,0.00016164,2]
[332923999,1721680269710,-548.84,0.00016164,2]
[332924000,1721680269725,-1056.19,0.00016164,2]
[332924001,1721680269742,-500.0,0.00016164,2]
[332924002,1721680269759,-500.0,0.00016164,2]
[332924003,1721680269778,-1214.04,0.00016164,2]
[332924004,1721680269792,-900.64,0.00016164,2]
[332924005,1721680269802,-539.94084987,0.00016164,2]
[332924006,1721680269811,-600.28,0.00016164,2]
[332924007,1721680269820,-1219.66,0.00016164,2]
[332924008,1721680269830,-500.0,0.00016164,2]
[332924009,1721680269839,-1201.16,0.00016164,2]
[332924010,1721680269849,-500.0,0.00016164,2]
[332924011,1721680269858,-374.51102994,0.00016164,2]
[332924012,1721680269868,-500.0,0.00016164,2]
[332924013,1721680269880,-646.82,0.00016164,2]
[332924014,1721680269890,-500.0,0.00016164,2]
[332924015,1721680269899,-500.0,0.00016164,2]
[332924016,1721680269909,-500.0,0.00016164,2]
[332924017,1721680269920,-500.0,0.00016164,2]
[332924018,1721680269930,-500.0,0.00016164,2]
[332924019,1721680269939,-171.16,0.00016164,2]
[332924020,1721680269951,-500.0,0.00016164,2]
[332924021,1721680269962,-888.44,0.00016164,2]
[332924022,1721680269971,-500.0,0.00016164,2]
[332924023,1721680269980,-500.0,0.00016164,2]
[332924024,1721680269990,-584.77,0.00016164,2]
[332924025,1721680269999,-500.0,0.00016164,2]
[332924026,1721680270009,-500.0,0.00016164,2]
[332924027,1721680270018,-518.63,0.00016164,2]
[332924028,1721680270027,-500.0,0.00016164,2]
[332924029,1721680270036,-500.0,0.00016164,2]
[332924030,1721680270047,-500.0,0.00016164,2]
[332924031,1721680270057,-500.0,0.00016164,2]
[332924032,1721680270066,-500.0,0.00016164,2]
[332924033,1721680270076,-476.14961583,0.00016164,2]
[332924034,1721680270319,-500.0,0.00016164,2]
[332924035,1721680270335,-500.0,0.00016164,2]
[332924036,1721680270347,-500.0,0.00016164,2]
[332924037,1721680270356,-500.0,0.00016164,2]
[332924038,1721680270365,-500.0,0.00016164,2]
[332924039,1721680270375,-500.0,0.00016164,2]
[332924040,1721680270384,-500.0,0.00016164,2]
[332924041,1721680270394,-500.0,0.00016164,2]
[332924042,1721680270403,-500.0,0.00016164,2]
[332924043,1721680270412,-500.0,0.00016164,2]
[332924044,1721680270421,-609.07,0.00016164,2]
[332924045,1721680270430,-500.0,0.00016164,2]
[332924046,1721680270440,-522.82,0.00016164,2]
[332924047,1721680270450,-627.63,0.00016164,2]
[332924048,1721680270459,-500.0,0.00016164,2]
[332924049,1721680270468,-540.01,0.00016164,2]
[332924050,1721680270478,-563.74,0.00016164,2]
[332924051,1721680270487,-500.0,0.00016164,2]
[332924052,1721680270497,-500.0,0.00016164,2]
[332924053,1721680270506,-568.51,0.00016164,2]
[332924054,1721680270517,-500.0,0.00016164,2]
[332924055,1721680270526,-500.0,0.00016164,2]
[332924056,1721680270535,-500.0,0.00016164,2]
[332924057,1721680270545,-633.99,0.00016164,2]
[332924058,1721680270554,-154.82097241,0.00016164,2]
[332924059,1721680270566,-345.17902759,0.00016164,2]
[332924060,1721680270575,-500.0,0.00016164,2]
[332924061,1721680270584,-500.0,0.00016164,2]
[332924062,1721680270593,-92.21378136,0.00016164,2]
[332924063,1721680270783,-3744.60244545,8.7e-05,2]
[332924064,1721680270792,-248.81385722,9.999e-05,2]
[332924065,1721680270801,-531.29167136,9.999e-05,2]
[332924066,1721680270810,-500.0,0.00013698,2]
[332924067,1721680270819,-151.0,0.00015707,2]
[332924068,1721680270828,-154.71377951,0.00015712,2]
[332924069,1721680270837,-585.30621864,0.00016164,2]
[332924070,1721680270846,-509.15,0.00016164,2]
[332924071,1721680270855,-500.0,0.00016164,2]
[332924072,1721680270864,-500.0,0.00016164,2]
[332924073,1721680270875,-562.75,0.00016164,2]
[332924074,1721680270886,-500.0,0.00016164,2]
[332924075,1721680270895,-500.0,0.00016164,2]
[332924076,1721680270904,-500.0,0.00016164,2]
[332924077,1721680270913,-607.77,0.00016164,2]
[332924078,1721680270924,-500.0,0.00016164,2]
[332924079,1721680270934,-500.0,0.00016164,2]
[332924080,1721680270944,-500.0,0.00016164,2]
[332924081,1721680270954,-610.77,0.00016164,2]
[332924082,1721680270964,-500.0,0.00016164,2]
[332924083,1721680270973,-500.0,0.00016164,2]
[332924084,1721680270982,-500.0,0.00016164,2]
[332924085,1721680270991,-809.09,0.00016164,2]
[332924086,1721680271001,-500.0,0.00016164,2]
[332924087,1721680271010,-500.0,0.00016164,2]
[332924088,1721680271019,-500.0,0.00016164,2]
[332924089,1721680271028,-500.0,0.00016164,2]
[332924090,1721680271038,-500.0,0.00016164,2]
[332924091,1721680271047,-500.0,0.00016164,2]
[332924092,1721680271056,-624.15,0.00016164,2]
[332924093,1721680271065,-306.74,0.00016164,2]
[332924094,1721680271074,-500.0,0.00016164,2]
[332924095,1721680271084,-154.71377951,0.00016309,2]
[332924096,1721680271093,-154.80649189,0.00016309,2]
[332924097,1721680271103,-404.3074502,0.00016309,2]
[332924098,1721680271112,-200.0,0.00016309,2]
[332924099,1721680271122,-154.71377951,0.00016347,2]
[332924100,1721680271132,-200.49851956,0.00016347,2]
[332924101,1721680271141,-1748.25,0.00016438,2]
[332924102,1721680271151,-500.0,0.00016438,2]
[332924103,1721680271161,-1403.19,0.00016438,2]
[332924104,1721680271170,-500.0,0.00016438,2]
[332924105,1721680271179,-500.0,0.00016438,2]
[332924106,1721680271189,-500.0,0.00016438,2]
[332924107,1721680271201,-503.99,0.00016438,2]
[332924108,1721680271210,-500.0,0.00016438,2]
[332924109,1721680271220,-1286.77,0.00016438,2]
[332924110,1721680271229,-500.0,0.00016438,2]
[332924111,1721680271238,-500.0,0.00016438,2]
[332924112,1721680271248,-504.21,0.00016438,2]
[332924113,1721680271257,-500.0,0.00016438,2]
[332924114,1721680271266,-2398.17,0.00016438,2]
[332924115,1721680271275,-500.0,0.00016438,2]
[332924116,1721680271284,-500.0,0.00016438,2]
[332924117,1721680271294,-500.0,0.00016438,2]
[332924118,1721680271304,-1715.81,0.00016438,2]
[332924119,1721680271313,-519.73,0.00016438,2]
[332924120,1721680271323,-500.0,0.00016438,2]
[332924121,1721680271333,-500.0,0.00016438,2]
[332924122,1721680271342,-2945.6,0.00016438,2]
[332924123,1721680271351,-500.0,0.00016438,2]
[332924124,1721680271361,-500.0,0.00016438,2]
[332924125,1721680271370,-548.84,0.00016438,2]
[332924126,1721680271379,-1056.19,0.00016438,2]